[Event "Early-Titled-Tuesday-Blitz-April-16-2024"]
[Site "Chess.com"]
[Date "2024.04.16"]
[Round "8"]
[White "Veleamater"]
[Black "djano"]
[Result "1-0"]
[WhiteElo "2435"]
[BlackElo "2591"]
[TimeControl "180+1"]
[EndTime "9:32:03 PDT"]
[Termination "Veleamater won by resignation"]

1. g3 {[%clk 0:03:00.9]} 1... c5 {[%clk 0:02:58.5]} 2. Bg2 {[%clk 0:03:00.5]}
2... Nc6 {[%clk 0:02:59]} 3. d3 {[%clk 0:03:00.8]} 3... g6 {[%clk 0:02:59.3]} 4.
e4 {[%clk 0:03:00.9]} 4... Bg7 {[%clk 0:02:59.8]} 5. Nc3 {[%clk 0:03:01.6]} 5...
d6 {[%clk 0:02:59.1]} 6. f4 {[%clk 0:03:02.1]} 6... Rb8 {[%clk 0:02:59]} 7. a4
{[%clk 0:03:01.1]} 7... e6 {[%clk 0:02:58.3]} 8. Nf3 {[%clk 0:03:01.1]} 8...
Nge7 {[%clk 0:02:58.8]} 9. O-O {[%clk 0:03:00.9]} 9... O-O {[%clk 0:02:55.9]}
10. g4 {[%clk 0:03:01.3]} 10... f5 {[%clk 0:02:56.2]} 11. gxf5 {[%clk
0:03:01.3]} 11... gxf5 {[%clk 0:02:56.3]} 12. Ng5 {[%clk 0:03:01.5]} 12... h6
{[%clk 0:02:55.1]} 13. Nf3 {[%clk 0:03:01.2]} 13... Nd4 {[%clk 0:02:55.3]} 14.
Be3 {[%clk 0:03:00.1]} 14... Nec6 {[%clk 0:02:55.1]} 15. Kh1 {[%clk 0:02:58.2]}
15... Kh8 {[%clk 0:02:54.1]} 16. Rg1 {[%clk 0:02:58.4]} 16... Bd7 {[%clk
0:02:37]} 17. Bh3 {[%clk 0:02:58.6]} 17... Qf6 {[%clk 0:02:32.6]} 18. Nb5 {[%clk
0:02:44.9]} 18... fxe4 {[%clk 0:02:24.8]} 19. dxe4 {[%clk 0:02:40.7]} 19... d5
{[%clk 0:02:03.9]} 20. e5 {[%clk 0:02:38.7]} 20... Qe7 {[%clk 0:01:54.9]} 21.
Bxd4 {[%clk 0:02:32]} 21... cxd4 {[%clk 0:01:54.8]} 22. Qd2 {[%clk 0:02:12.8]}
22... Qb4 {[%clk 0:01:54.5]} 23. Qg2 {[%clk 0:02:02.4]} 23... Rg8 {[%clk
0:01:48.5]} 24. Qg6 {[%clk 0:01:57.7]} 24... Be8 {[%clk 0:01:33.4]} 25. Qxe6
{[%clk 0:01:53.2]} 25... d3 {[%clk 0:01:30.4]} 26. Rxg7 {[%clk 0:01:45.5]} 26...
Rxg7 {[%clk 0:01:26.8]} 27. Qxh6+ {[%clk 0:01:45.4]} 27... Rh7 {[%clk
0:01:26.7]} 28. Qf6+ {[%clk 0:01:43.4]} 28... Rg7 {[%clk 0:01:27]} 29. Rg1
{[%clk 0:01:40.9]} 29... Qe7 {[%clk 0:01:22.4]} 30. cxd3 {[%clk 0:01:30.8]}
30... Qxf6 {[%clk 0:01:20.6]} 31. exf6 {[%clk 0:01:30.1]} 31... Rxg1+ {[%clk
0:01:21.2]} 32. Kxg1 {[%clk 0:01:29.6]} 32... Bh5 {[%clk 0:01:16.9]} 33. Ne5
{[%clk 0:01:28.7]} 33... Rf8 {[%clk 0:01:11.9]} 34. Nd7 {[%clk 0:01:21.8]} 34...
Rd8 {[%clk 0:01:11.8]} 35. Nd6 {[%clk 0:01:11.5]} 35... Nd4 {[%clk 0:00:52.8]}
36. Nxb7 {[%clk 0:01:09.2]} 36... Re8 {[%clk 0:00:47.9]} 37. Nd6 {[%clk
0:01:07.2]} 37... Re2 {[%clk 0:00:45]} 38. Ne5 {[%clk 0:00:58.9]} 38... Nf3+
{[%clk 0:00:40]} 39. Nxf3 {[%clk 0:00:58.3]} 39... Bxf3 {[%clk 0:00:40.9]} 40.
b4 {[%clk 0:00:44.8]} 40... d4 {[%clk 0:00:36.1]} 41. Bf1 {[%clk 0:00:38]} 41...
Re6 {[%clk 0:00:32.3]} 42. Kf2 {[%clk 0:00:33.4]} 42... Rxd6 {[%clk 0:00:27.3]}
43. Kxf3 {[%clk 0:00:33.6]} 43... Rxf6 {[%clk 0:00:27.9]} 44. Ke4 {[%clk
0:00:33.9]} 44... Rh6 {[%clk 0:00:26.4]} 45. Kxd4 {[%clk 0:00:32.5]} 45... Rxh2
{[%clk 0:00:26.1]} 46. Ke5 {[%clk 0:00:30]} 46... Kg8 {[%clk 0:00:25]} 47. d4
{[%clk 0:00:28.6]} 47... Kf8 {[%clk 0:00:24.9]} 48. Bb5 {[%clk 0:00:27]} 48...
Rb2 {[%clk 0:00:22.8]} 49. d5 {[%clk 0:00:26.4]} 49... Rxb4 {[%clk 0:00:21.3]}
50. f5 {[%clk 0:00:26.9]} 50... a6 {[%clk 0:00:18.8]} 51. Bc6 {[%clk 0:00:21.4]}
51... Rb2 {[%clk 0:00:18.2]} 52. Kd6 {[%clk 0:00:20.6]} 52... Kf7 {[%clk
0:00:16.9]} 53. Kc7 {[%clk 0:00:20.4]} 53... Rd2 {[%clk 0:00:14.7]} 54. d6
{[%clk 0:00:20.8]} 54... Kf6 {[%clk 0:00:12.8]} 55. d7 {[%clk 0:00:20.3]} 55...
Ke7 {[%clk 0:00:13.5]} 56. f6+ {[%clk 0:00:20.2]} 56... Kxf6 {[%clk 0:00:13.6]}
57. d8=Q+ {[%clk 0:00:20.6]} 57... Rxd8 {[%clk 0:00:13.8]} 58. Kxd8 {[%clk
0:00:21.5]} 58... Ke5 {[%clk 0:00:13.4]} 59. Kc7 {[%clk 0:00:22.4]} 59... a5
{[%clk 0:00:11.9]} 60. Kb6 {[%clk 0:00:22.7]} 60... Kd6 {[%clk 0:00:12.4]} 61.
Bb5 {[%clk 0:00:23]} 1-0

[Event "Early-Titled-Tuesday-Blitz-April-16-2024"]
[Site "Chess.com"]
[Date "2024.04.16"]
[Round "8"]
[White "KuzubovYuriy"]
[Black "amintabatabaei"]
[Result "0-1"]
[WhiteElo "2921"]
[BlackElo "3052"]
[TimeControl "180+1"]
[EndTime "9:32:05 PDT"]
[Termination "amintabatabaei won by resignation"]

1. d4 {[%clk 0:03:00.9]} 1... Nf6 {[%clk 0:03:00]} 2. c4 {[%clk 0:03:01.1]} 2...
g6 {[%clk 0:03:00.7]} 3. Nc3 {[%clk 0:03:01.7]} 3... Bg7 {[%clk 0:03:01.4]} 4.
e4 {[%clk 0:03:01.8]} 4... d6 {[%clk 0:03:02.1]} 5. Nge2 {[%clk 0:03:02.5]} 5...
e5 {[%clk 0:02:58.4]} 6. d5 {[%clk 0:03:01.1]} 6... a5 {[%clk 0:02:58.4]} 7. Ng3
{[%clk 0:03:00.1]} 7... h5 {[%clk 0:02:58.5]} 8. Bg5 {[%clk 0:02:57.6]} 8...
Nbd7 {[%clk 0:02:58.3]} 9. h4 {[%clk 0:02:52.9]} 9... Bh6 {[%clk 0:02:57.2]} 10.
Bxh6 {[%clk 0:02:45.9]} 10... Rxh6 {[%clk 0:02:58.1]} 11. Qd2 {[%clk 0:02:44.4]}
11... Rh8 {[%clk 0:02:58]} 12. O-O-O {[%clk 0:02:45.1]} 12... Nc5 {[%clk
0:02:57.6]} 13. Kb1 {[%clk 0:02:42.4]} 13... a4 {[%clk 0:02:57.3]} 14. Bd3
{[%clk 0:02:39.3]} 14... Qe7 {[%clk 0:02:54.8]} 15. Bc2 {[%clk 0:02:38.2]} 15...
Qf8 {[%clk 0:02:54.6]} 16. Nb5 {[%clk 0:02:26]} 16... Kd8 {[%clk 0:02:49.8]} 17.
Qg5 {[%clk 0:02:14.8]} 17... Nd7 {[%clk 0:02:40.2]} 18. Nc3 {[%clk 0:02:01.9]}
18... a3 {[%clk 0:02:35.9]} 19. Ba4 {[%clk 0:01:59.4]} 19... Qh6 {[%clk
0:02:28.6]} 20. Qxh6 {[%clk 0:01:58.3]} 20... Rxh6 {[%clk 0:02:29.5]} 21. Bxd7
{[%clk 0:01:57.9]} 21... Bxd7 {[%clk 0:02:27.3]} 22. b3 {[%clk 0:01:58.1]} 22...
Ng4 {[%clk 0:02:22.8]} 23. Rd2 {[%clk 0:01:50.9]} 23... f5 {[%clk 0:02:22.2]}
24. Kc2 {[%clk 0:01:43.5]} 24... Ke7 {[%clk 0:02:21.2]} 25. Re2 {[%clk
0:01:40.8]} 25... Rf8 {[%clk 0:02:17.9]} 26. f3 {[%clk 0:01:39.9]} 26... Nf6
{[%clk 0:02:16]} 27. b4 {[%clk 0:01:37.9]} 27... f4 {[%clk 0:01:47.6]} 28. Nf1
{[%clk 0:01:37.7]} 28... Ra8 {[%clk 0:01:48.4]} 29. Rg1 {[%clk 0:01:28.1]} 29...
Rhh8 {[%clk 0:01:46.3]} 30. g3 {[%clk 0:01:26.5]} 30... fxg3 {[%clk 0:01:46.2]}
31. Rxg3 {[%clk 0:01:24.7]} 31... Rhg8 {[%clk 0:01:46.5]} 32. Reg2 {[%clk
0:01:23.4]} 32... Kf7 {[%clk 0:01:41.6]} 33. Nd2 {[%clk 0:01:20.1]} 33... b6
{[%clk 0:01:38.6]} 34. Ne2 {[%clk 0:01:01.6]} 34... c6 {[%clk 0:01:20.6]} 35.
Nc3 {[%clk 0:00:51.2]} 35... cxd5 {[%clk 0:01:16]} 36. cxd5 {[%clk 0:00:50.6]}
36... Rac8 {[%clk 0:01:01.5]} 37. Kb3 {[%clk 0:00:49.4]} 37... b5 {[%clk
0:01:00.9]} 38. Ndb1 {[%clk 0:00:45.7]} 38... Rb8 {[%clk 0:00:54.5]} 39. Nxa3
{[%clk 0:00:45]} 39... Nh7 {[%clk 0:00:55.4]} 40. Rh2 {[%clk 0:00:37.5]} 40...
g5 {[%clk 0:00:54.8]} 41. hxg5 {[%clk 0:00:37.4]} 41... Kg6 {[%clk 0:00:55.5]}
42. Ne2 {[%clk 0:00:35]} 42... Rgf8 {[%clk 0:00:55.6]} 43. Nc2 {[%clk
0:00:27.8]} 43... Rf7 {[%clk 0:00:56]} 44. Ne1 {[%clk 0:00:23.8]} 44... Rg8
{[%clk 0:00:51.8]} 45. Ng2 {[%clk 0:00:19.8]} 45... Nxg5 {[%clk 0:00:52.2]} 46.
f4 {[%clk 0:00:19.9]} 46... exf4 {[%clk 0:00:47.6]} 47. Ngxf4+ {[%clk
0:00:20.8]} 47... Kf6 {[%clk 0:00:48.1]} 48. Rxh5 {[%clk 0:00:20.7]} 48... Rfg7
{[%clk 0:00:45.4]} 49. Nc3 {[%clk 0:00:20]} 49... Nf7 {[%clk 0:00:39.1]} 50.
Rxg7 {[%clk 0:00:19.5]} 50... Rxg7 {[%clk 0:00:40]} 51. Rh1 {[%clk 0:00:19.3]}
51... Rg4 {[%clk 0:00:36.2]} 52. Rf1 {[%clk 0:00:19.6]} 52... Ke7 {[%clk
0:00:32.3]} 53. Nd3 {[%clk 0:00:19]} 53... Rg3 {[%clk 0:00:31.2]} 54. Kc2 {[%clk
0:00:16.8]} 54... Be8 {[%clk 0:00:29]} 55. Rf2 {[%clk 0:00:16.3]} 55... Ng5
{[%clk 0:00:29.2]} 56. Nf4 {[%clk 0:00:15.6]} 56... Rxc3+ {[%clk 0:00:27.9]} 57.
Kxc3 {[%clk 0:00:15.8]} 57... Nxe4+ {[%clk 0:00:28.5]} 58. Kd4 {[%clk
0:00:16.7]} 58... Nxf2 {[%clk 0:00:29.2]} 59. Ne2 {[%clk 0:00:17]} 59... Ng4
{[%clk 0:00:27.7]} 60. Nc3 {[%clk 0:00:17.6]} 60... Nf6 {[%clk 0:00:26.6]} 61.
a3 {[%clk 0:00:16.5]} 61... Kd8 {[%clk 0:00:26.8]} 62. Nd1 {[%clk 0:00:16.7]}
62... Kc7 {[%clk 0:00:26.6]} 63. Ne3 {[%clk 0:00:16.7]} 63... Bf7 {[%clk
0:00:25.6]} 0-1

[Event "Early-Titled-Tuesday-Blitz-April-16-2024"]
[Site "Chess.com"]
[Date "2024.04.16"]
[Round "8"]
[White "Mazarini41"]
[Black "pfalcon1949"]
[Result "1-0"]
[WhiteElo "2341"]
[BlackElo "1930"]
[TimeControl "180+1"]
[EndTime "9:32:06 PDT"]
[Termination "Mazarini41 won on time"]

1. e4 {[%clk 0:02:54]} 1... e6 {[%clk 0:02:59.8]} 2. Nf3 {[%clk 0:02:52.6]} 2...
d5 {[%clk 0:02:59.6]} 3. e5 {[%clk 0:02:53]} 3... c5 {[%clk 0:02:58.3]} 4. b4
{[%clk 0:02:53.6]} 4... cxb4 {[%clk 0:02:57.6]} 5. a3 {[%clk 0:02:53.1]} 5...
Qa5 {[%clk 0:02:56.5]} 6. Bb2 {[%clk 0:02:37.7]} 6... Nc6 {[%clk 0:02:51]} 7.
axb4 {[%clk 0:02:34.5]} 7... Qxb4 {[%clk 0:02:49.5]} 8. Ba3 {[%clk 0:02:24.6]}
8... Qe4+ {[%clk 0:02:47.9]} 9. Be2 {[%clk 0:02:20.9]} 9... Bxa3 {[%clk
0:02:47.1]} 10. Nxa3 {[%clk 0:02:20.4]} 10... Nge7 {[%clk 0:02:35.3]} 11. Nb5
{[%clk 0:02:17.6]} 11... O-O {[%clk 0:02:35]} 12. Nd6 {[%clk 0:02:15.3]} 12...
Qg4 {[%clk 0:02:15.2]} 13. O-O {[%clk 0:02:04.6]} 13... b6 {[%clk 0:02:04.7]}
14. d4 {[%clk 0:02:01.7]} 14... a5 {[%clk 0:02:00.5]} 15. h3 {[%clk 0:01:44.8]}
15... Qh5 {[%clk 0:01:47.5]} 16. Qd3 {[%clk 0:01:40.9]} 16... Ba6 {[%clk
0:01:44.6]} 17. c4 {[%clk 0:01:36]} 17... dxc4 {[%clk 0:01:36.1]} 18. Nxc4
{[%clk 0:01:29.5]} 18... Rfd8 {[%clk 0:01:28.3]} 19. Qc2 {[%clk 0:01:11]} 19...
Qg6 {[%clk 0:01:16.9]} 20. Bd3 {[%clk 0:01:00.7]} 20... Qh6 {[%clk 0:01:05.7]}
21. Nxb6 {[%clk 0:00:59.5]} 21... Bxd3 {[%clk 0:01:01.5]} 22. Qxd3 {[%clk
0:00:59.6]} 22... Rab8 {[%clk 0:00:53.7]} 23. Nc4 {[%clk 0:00:45.9]} 23... Nd5
{[%clk 0:00:51.9]} 24. Nd6 {[%clk 0:00:43.6]} 24... Nf4 {[%clk 0:00:47.8]} 25.
Qe4 {[%clk 0:00:37.7]} 25... Ne7 {[%clk 0:00:30.3]} 26. Rxa5 {[%clk 0:00:30.3]}
26... Ned5 {[%clk 0:00:30]} 27. Ra7 {[%clk 0:00:24.7]} 27... Rf8 {[%clk
0:00:29.5]} 28. Rd7 {[%clk 0:00:20.5]} 28... Qh5 {[%clk 0:00:22.2]} 29. Ra1
{[%clk 0:00:18.9]} 29... h6 {[%clk 0:00:19.4]} 30. Raa7 {[%clk 0:00:18.1]} 30...
Rb4 {[%clk 0:00:14.8]} 31. Nxf7 {[%clk 0:00:13.5]} 31... Rxf7 {[%clk 0:00:14]}
32. Rxf7 {[%clk 0:00:13.6]} 32... Qg6 {[%clk 0:00:09]} 33. Rxg7+ {[%clk
0:00:13.5]} 33... Qxg7 {[%clk 0:00:08.2]} 34. Rxg7+ {[%clk 0:00:13.4]} 34...
Kxg7 {[%clk 0:00:09.1]} 35. Nh4 {[%clk 0:00:12.8]} 35... Rb7 {[%clk 0:00:08.2]}
36. g3 {[%clk 0:00:10.5]} 36... Nxh3+ {[%clk 0:00:07.7]} 37. Kg2 {[%clk
0:00:10.9]} 37... Ng5 {[%clk 0:00:04.8]} 38. Qg6+ {[%clk 0:00:11]} 38... Kf8
{[%clk 0:00:04.8]} 39. Qxh6+ {[%clk 0:00:11]} 39... Ke8 {[%clk 0:00:04]} 40.
Qxg5 {[%clk 0:00:11.6]} 40... Kd7 {[%clk 0:00:03.8]} 41. Qg7+ {[%clk 0:00:11.7]}
41... Kc6 {[%clk 0:00:04.7]} 42. Qg5 {[%clk 0:00:08.4]} 42... Rd7 {[%clk
0:00:04.5]} 43. Qc1+ {[%clk 0:00:07.4]} 43... Kb7 {[%clk 0:00:02.5]} 44. Qb2+
{[%clk 0:00:07]} 44... Nb6 {[%clk 0:00:02.4]} 45. Ng6 {[%clk 0:00:06.9]} 45...
Rc7 {[%clk 0:00:01.9]} 46. Nf4 {[%clk 0:00:05.9]} 46... Rc6 {[%clk 0:00:02.3]}
47. Qb5 {[%clk 0:00:04.6]} 47... Rc7 {[%clk 0:00:02.3]} 48. Nxe6 {[%clk
0:00:04.2]} 1-0

[Event "Early-Titled-Tuesday-Blitz-April-16-2024"]
[Site "Chess.com"]
[Date "2024.04.16"]
[Round "8"]
[White "jcibarra"]
[Black "Timerkhanov"]
[Result "0-1"]
[WhiteElo "2940"]
[BlackElo "2668"]
[TimeControl "180+1"]
[EndTime "9:32:08 PDT"]
[Termination "Timerkhanov won on time"]

1. e4 {[%clk 0:03:00.9]} 1... c5 {[%clk 0:02:59.3]} 2. Nf3 {[%clk 0:03:00.9]}
2... a6 {[%clk 0:02:59.9]} 3. g3 {[%clk 0:02:59.2]} 3... b5 {[%clk 0:02:59.6]}
4. Bg2 {[%clk 0:02:58.8]} 4... Bb7 {[%clk 0:03:00.2]} 5. d4 {[%clk 0:02:59.5]}
5... cxd4 {[%clk 0:02:57.2]} 6. Nxd4 {[%clk 0:02:59.7]} 6... e6 {[%clk
0:02:55.5]} 7. O-O {[%clk 0:02:59.2]} 7... d6 {[%clk 0:02:54.7]} 8. a4 {[%clk
0:02:58.4]} 8... b4 {[%clk 0:02:53.1]} 9. c3 {[%clk 0:02:58.8]} 9... bxc3 {[%clk
0:02:51.4]} 10. Nxc3 {[%clk 0:02:59.7]} 10... Nd7 {[%clk 0:02:48.4]} 11. Re1
{[%clk 0:02:58.6]} 11... Ngf6 {[%clk 0:02:44.1]} 12. e5 {[%clk 0:02:58.3]} 12...
Bxg2 {[%clk 0:02:42.9]} 13. exf6 {[%clk 0:02:56]} 13... Bb7 {[%clk 0:02:39.7]}
14. fxg7 {[%clk 0:02:44.7]} 14... Bxg7 {[%clk 0:02:40.6]} 15. Nf5 {[%clk
0:02:39.8]} 15... Be5 {[%clk 0:02:19.2]} 16. Nxd6+ {[%clk 0:01:46.8]} 16... Bxd6
{[%clk 0:02:20.1]} 17. Qxd6 {[%clk 0:01:46.8]} 17... Qb6 {[%clk 0:02:19.2]} 18.
Bf4 {[%clk 0:01:38.2]} 18... Qxd6 {[%clk 0:02:08.3]} 19. Bxd6 {[%clk 0:01:38.1]}
19... Nb6 {[%clk 0:02:08.9]} 20. Be5 {[%clk 0:01:18.8]} 20... Rg8 {[%clk
0:02:06.3]} 21. Rad1 {[%clk 0:01:16.5]} 21... Rd8 {[%clk 0:01:50.5]} 22. Bf6
{[%clk 0:01:14.8]} 22... Rxd1 {[%clk 0:01:49.7]} 23. Rxd1 {[%clk 0:01:15.7]}
23... Nd5 {[%clk 0:01:49.6]} 24. Ne4 {[%clk 0:01:13.6]} 24... Bc6 {[%clk
0:01:48.3]} 25. Rc1 {[%clk 0:01:09.2]} 25... Kd7 {[%clk 0:01:36.1]} 26. Be5
{[%clk 0:01:05.2]} 26... a5 {[%clk 0:01:18.2]} 27. Nc5+ {[%clk 0:01:02.3]} 27...
Ke7 {[%clk 0:01:18.5]} 28. b3 {[%clk 0:00:53.1]} 28... Rc8 {[%clk 0:01:16.4]}
29. Bb2 {[%clk 0:00:45.2]} 29... Nb4 {[%clk 0:01:05.3]} 30. Ba3 {[%clk
0:00:37.8]} 30... Bd5 {[%clk 0:01:05.5]} 31. f4 {[%clk 0:00:32.6]} 31... f6
{[%clk 0:00:55.7]} 32. Kf2 {[%clk 0:00:27.3]} 32... Rc6 {[%clk 0:00:49.9]} 33.
Bxb4 {[%clk 0:00:22.8]} 33... axb4 {[%clk 0:00:50]} 34. Nd3 {[%clk 0:00:23.4]}
34... Rxc1 {[%clk 0:00:42.1]} 35. Nxc1 {[%clk 0:00:24.3]} 35... Kd6 {[%clk
0:00:42.4]} 36. Ke3 {[%clk 0:00:24.7]} 36... e5 {[%clk 0:00:40.4]} 37. fxe5+
{[%clk 0:00:23.4]} 37... fxe5 {[%clk 0:00:41.3]} 38. a5 {[%clk 0:00:20.2]} 38...
Kc5 {[%clk 0:00:39.6]} 39. g4 {[%clk 0:00:06.2]} 39... Kb5 {[%clk 0:00:38.8]}
40. h4 {[%clk 0:00:06.9]} 40... Kxa5 {[%clk 0:00:38.9]} 41. g5 {[%clk
0:00:07.6]} 41... Kb5 {[%clk 0:00:37.1]} 42. h5 {[%clk 0:00:08.1]} 42... Bf7
{[%clk 0:00:33.6]} 43. g6 {[%clk 0:00:08]} 43... hxg6 {[%clk 0:00:33.6]} 44. h6
{[%clk 0:00:08.8]} 44... Bg8 {[%clk 0:00:33.7]} 45. Ke4 {[%clk 0:00:09.5]} 45...
Bh7 {[%clk 0:00:32.8]} 46. Kxe5 {[%clk 0:00:10]} 46... g5 {[%clk 0:00:33.3]} 47.
Kf6 {[%clk 0:00:09.4]} 47... Kc5 {[%clk 0:00:28.6]} 48. Kxg5 {[%clk 0:00:07.3]}
48... Kd4 {[%clk 0:00:29]} 49. Kf6 {[%clk 0:00:07.4]} 49... Kc3 {[%clk
0:00:28.7]} 50. Kg7 {[%clk 0:00:08]} 50... Bb1 {[%clk 0:00:26.7]} 51. Ne2+
{[%clk 0:00:06.3]} 51... Kxb3 {[%clk 0:00:26.2]} 52. Nf4 {[%clk 0:00:06.4]}
52... Ka2 {[%clk 0:00:24.2]} 53. Nd5 {[%clk 0:00:05.3]} 53... Ka3 {[%clk
0:00:21.5]} 54. Nf4 {[%clk 0:00:02.7]} 54... b3 {[%clk 0:00:20.6]} 55. Ne2
{[%clk 0:00:01.9]} 55... b2 {[%clk 0:00:18.9]} 56. Nc3 {[%clk 0:00:02.3]} 56...
Bd3 {[%clk 0:00:19.3]} 0-1

[Event "Early-Titled-Tuesday-Blitz-April-16-2024"]
[Site "Chess.com"]
[Date "2024.04.16"]
[Round "8"]
[White "Zhigalko_Sergei"]
[Black "AnishOnYoutube"]
[Result "0-1"]
[WhiteElo "2931"]
[BlackElo "3056"]
[TimeControl "180+1"]
[EndTime "9:32:14 PDT"]
[Termination "AnishOnYoutube won by checkmate"]

1. e4 {[%clk 0:03:00.9]} 1... e5 {[%clk 0:03:00.7]} 2. Nf3 {[%clk 0:03:01.2]}
2... Nc6 {[%clk 0:03:01.3]} 3. Bc4 {[%clk 0:03:01.4]} 3... Nf6 {[%clk
0:03:01.6]} 4. d3 {[%clk 0:03:01.6]} 4... Bc5 {[%clk 0:03:02]} 5. O-O {[%clk
0:03:01.7]} 5... d6 {[%clk 0:03:02.1]} 6. Nbd2 {[%clk 0:03:02.3]} 6... O-O
{[%clk 0:03:02]} 7. c3 {[%clk 0:03:02.9]} 7... a5 {[%clk 0:03:02.2]} 8. h3
{[%clk 0:03:01.5]} 8... Ba7 {[%clk 0:03:01.5]} 9. Re1 {[%clk 0:02:58.7]} 9...
Be6 {[%clk 0:03:01.9]} 10. Bb5 {[%clk 0:02:53.8]} 10... Ne7 {[%clk 0:03:02]} 11.
Nf1 {[%clk 0:02:52.9]} 11... c6 {[%clk 0:02:52.5]} 12. Ba4 {[%clk 0:02:53.1]}
12... Ng6 {[%clk 0:02:53.2]} 13. Ng3 {[%clk 0:02:45]} 13... d5 {[%clk
0:02:53.1]} 14. exd5 {[%clk 0:02:38.4]} 14... Nxd5 {[%clk 0:02:52.3]} 15. Ng5
{[%clk 0:02:31.3]} 15... Bd7 {[%clk 0:02:26.4]} 16. Bb3 {[%clk 0:02:00.9]} 16...
Qc7 {[%clk 0:02:01.8]} 17. Qh5 {[%clk 0:01:35.1]} 17... h6 {[%clk 0:01:54.6]}
18. Nf3 {[%clk 0:01:16.7]} 18... Ndf4 {[%clk 0:01:41.4]} 19. Bxf4 {[%clk
0:00:54.6]} 19... Nxf4 {[%clk 0:01:42.3]} 20. Qxe5 {[%clk 0:00:42.8]} 20...
Bxf2+ {[%clk 0:01:41.4]} 21. Kh2 {[%clk 0:00:43.4]} 21... Qxe5 {[%clk
0:00:49.2]} 22. Rxe5 {[%clk 0:00:43.3]} 22... Nxd3 {[%clk 0:00:49.9]} 23. Re7
{[%clk 0:00:43.1]} 23... Rad8 {[%clk 0:00:34.8]} 24. Rf1 {[%clk 0:00:17.7]}
24... Bc5 {[%clk 0:00:20.4]} 25. Re2 {[%clk 0:00:18.3]} 25... Bc8 {[%clk
0:00:11.7]} 26. Nh4 {[%clk 0:00:10.5]} 26... Be6 {[%clk 0:00:04.2]} 27. Bxe6
{[%clk 0:00:02.1]} 27... fxe6 {[%clk 0:00:05.1]} 28. Rxf8+ {[%clk 0:00:02.2]}
28... Bxf8 {[%clk 0:00:05.9]} 29. Rxe6 {[%clk 0:00:02]} 29... Nxb2 {[%clk
0:00:05.9]} 30. Ng6 {[%clk 0:00:02.4]} 30... Na4 {[%clk 0:00:06]} 31. c4 {[%clk
0:00:02.5]} 31... Nc5 {[%clk 0:00:06.2]} 32. Re2 {[%clk 0:00:02.3]} 32... Bd6
{[%clk 0:00:06.9]} 33. h4 {[%clk 0:00:02.2]} 33... Kf7 {[%clk 0:00:06]} 34. h5
{[%clk 0:00:02.2]} 34... Re8 {[%clk 0:00:06.4]} 35. Rf2+ {[%clk 0:00:02.2]}
35... Ke6 {[%clk 0:00:06.5]} 36. Kh3 {[%clk 0:00:03.1]} 36... Bxg3 {[%clk
0:00:06.6]} 37. Kxg3 {[%clk 0:00:04]} 37... Ne4+ {[%clk 0:00:06.9]} 38. Kf3
{[%clk 0:00:04.1]} 38... Nxf2 {[%clk 0:00:07.7]} 39. Kxf2 {[%clk 0:00:02.5]}
39... Kf5 {[%clk 0:00:08.3]} 40. Kf3 {[%clk 0:00:03]} 40... Re4 {[%clk
0:00:08.2]} 41. g4+ {[%clk 0:00:03.9]} 41... Rxg4 {[%clk 0:00:08]} 42. Ne7+
{[%clk 0:00:01.6]} 42... Kg5 {[%clk 0:00:08.4]} 43. c5 {[%clk 0:00:02.5]} 43...
Ra4 {[%clk 0:00:08]} 44. Nc8 {[%clk 0:00:01.1]} 44... Rxa2 {[%clk 0:00:07.7]}
45. Nd6 {[%clk 0:00:02]} 45... Rc2 {[%clk 0:00:07.6]} 46. Ke3 {[%clk 0:00:02]}
46... a4 {[%clk 0:00:08.2]} 47. Kd3 {[%clk 0:00:02.3]} 47... Rc1 {[%clk
0:00:07.8]} 48. Ne4+ {[%clk 0:00:03.2]} 48... Kf4 {[%clk 0:00:07.8]} 49. Nf2
{[%clk 0:00:02.2]} 49... Rxc5 {[%clk 0:00:07.8]} 50. Ke2 {[%clk 0:00:01.9]}
50... Re5+ {[%clk 0:00:08.1]} 51. Kf1 {[%clk 0:00:01.7]} 51... Rxh5 {[%clk
0:00:08.5]} 52. Nd3+ {[%clk 0:00:02.6]} 52... Ke3 {[%clk 0:00:08.1]} 53. Ne1
{[%clk 0:00:02.3]} 53... Rf5+ {[%clk 0:00:08.3]} 54. Kg1 {[%clk 0:00:02.2]}
54... Ke2 {[%clk 0:00:08.3]} 55. Nc2 {[%clk 0:00:03.1]} 55... Rg5+ {[%clk
0:00:08.9]} 56. Kh2 {[%clk 0:00:03.2]} 56... Kf2 {[%clk 0:00:09.4]} 57. Nd4
{[%clk 0:00:03.3]} 57... Rh5# {[%clk 0:00:09.6]} 0-1